bitfinex/quotes_ETHUSD_20250217
["timestamp","ask_amount","ask_price","bid_price","bid_amount"]
[1739808368593,0.1,2764.9,2764.8,0.55]
[1739808368821,0.1,2764.9,2764.8,0.60928047]
[1739808369023,0.1,2764.9,2764.8,8.10226752]
[1739808369223,0.1,2764.9,2764.8,9.65976752]
[1739808369840,0.1,2764.9,2764.8,6.04287752]
[1739808370024,0.1,2764.9,2764.8,9.65976752]
[1739808370601,0.1,2764.9,2764.8,10.01876752]
[1739808371025,3.61441,2766.7,2765.7,1.5929]
[1739808371228,3.61377,2767.2,2765.9,3.55]
[1739808371542,3.61386,2767.2,2766.3,0.55]
[1739808371746,3.6139,2767.1,2766.3,0.55]
[1739808372037,3.61386,2767.2,2766.4,0.0578691]
[1739808372244,3.6139,2767.1,2766.4,0.2721591]
[1739808372647,0.55,2767.5,2766.4,0.2721591]
[1739808372814,0.55,2767.5,2766.6,0.55]
[1739808373017,4.16343,2767.5,2766.6,0.55]
[1739808373311,0.55,2767.5,2766.7,0.05760465]
[1739808373523,0.55,2767.5,2767.0,0.55]
[1739808373856,0.55,2767.5,2767.2,0.55]
[1739808374199,0.55,2767.5,2767.1,0.05725214]
[1739808375032,0.55,2767.5,2767.2,0.05545488]
[1739808375237,0.55,2767.5,2766.6,1.44436969]
[1739808375435,0.55,2767.5,2766.8,0.55]
[1739808375760,0.55,2767.5,2766.9,1.6542]
[1739808375925,0.55,2767.5,2767.0,0.55]
[1739808376260,0.55,2767.5,2767.1,0.05357852]
[1739808376422,0.55,2767.5,2766.9,4.6542]
[1739808376423,3.61362,2767.4,2766.9,4.6542]
[1739808376623,3.61378,2767.2,2767.0,0.05366663]
[1739808376942,3.61408,2767.0,2766.5,1.6542]
[1739808377143,3.61443,2766.7,2766.5,1.6542]
[1739808377471,3.61443,2766.7,2766.0,1.6542]
[1739808377670,3.0,2767.3,2766.6,0.05201753]
[1739808377976,3.61481,2766.4,2766.0,1.6542]
[1739808378284,3.73399076,2767.3,2765.2,8.69596598]
[1739808378285,1.5436,2767.2,2765.2,1.6542]
[1739808378518,3.6142,2766.9,2765.2,1.6542]
[1739808378621,3.6152,2766.1,2765.2,1.6542]
[1739808378822,3.61446,2766.7,2765.2,1.6542]
[1739808378823,3.61472,2766.5,2765.3,7.13473398]
[1739808379057,3.61495,2766.3,2765.3,0.51858398]
[1739808379258,1.5436,2767.2,2765.6,1.6542]
[1739808379470,3.61441,2766.7,2765.7,0.05281111]
[1739808379683,1.5436,2767.2,2765.7,0.05281111]
[1739808379970,0.55,2767.5,2766.2,1.645]
[1739808380176,3.61453,2766.7,2766.2,1.645]
[1739808380375,3.6147,2766.5,2766.3,0.052282]
[1739808380536,3.61429,2766.8,2766.3,0.052282]
[1739808380741,3.61454,2766.7,2765.8,2.195]
[1739808380946,3.61453,2766.7,2766.4,0.05219383]
[1739808381176,7.22946,2766.5,2765.8,1.645]
[1739808381383,3.6149,2766.4,2765.8,1.645]
[1739808381559,3.61445,2766.7,2765.8,1.645]
[1739808381759,3.61502,2766.3,2765.8,1.645]
[1739808382075,1.555,2767.1,2765.8,6.72472598]
[1739808382311,3.61376,2767.2,2766.2,0.55]
[1739808382442,2.1219,2767.5,2766.3,0.9842]
[1739808382641,0.04517529,2767.4,2766.3,0.9842]
[1739808382889,3.61426,2766.9,2766.3,0.9842]
[1739808383089,0.722825,2766.9,2765.9,0.7082726]
[1739808383298,3.61489,2766.4,2765.7,0.358]
[1739808383461,3.61363,2767.3,2765.7,0.358]
[1739808383462,3.6147,2766.5,2765.7,0.358]
[1739808383656,3.0,2767.3,2765.7,0.358]
[1739808383986,3.61493,2766.4,2765.7,0.358]
[1739808384145,3.61514,2766.2,2765.0,5.07972598]
[1739808384344,3.04518938,2767.1,2765.8,0.55]
[1739808384345,3.61438,2766.8,2765.8,0.55]
[1739808384546,0.04518288,2767.0,2765.8,0.55]
[1739808384777,3.61476,2766.5,2765.5,0.357]
[1739808384977,3.61442,2766.7,2765.6,3.61577]
[1739808385182,1.5789,2767.1,2765.5,3.357]
[1739808385379,1.5789,2767.1,2765.9,7.2309]
[1739808385580,3.61396,2767.1,2766.1,0.55]
[1739808385794,3.61444,2766.7,2766.0,1.6135]
[1739808386030,3.61488,2766.4,2766.0,1.6135]
[1739808386142,3.61494,2766.3,2765.6,1.6135]
[1739808386342,3.61512,2766.2,2765.6,1.6135]
[1739808386547,5.15065,2766.7,2765.6,1.6135]
[1739808386548,3.61494,2766.3,2765.6,1.6135]
[1739808386793,3.61494,2766.3,2765.7,0.55]
[1739808386993,5.15066,2766.7,2765.7,0.76635]
[1739808387306,2.0908,2767.5,2765.9,3.55]
[1739808387446,3.61407,2767.0,2766.2,1.5314]
[1739808387647,5.70423,2767.5,2766.3,0.55]
[1739808387841,3.61414,2767.0,2766.3,0.55]
[1739808388079,0.570423,2767.4,2766.3,4.16491]
[1739808388257,4.16337,2767.5,2766.6,0.55]
[1739808388474,7.22719,2767.4,2766.6,0.55]
[1739808388799,3.61366,2767.3,2766.6,0.55]
[1739808389003,0.55,2767.5,2766.6,0.55]
[1739808389303,0.55,2767.5,2766.8,3.0]
[1739808389598,0.55,2767.5,2766.7,1.5074]
[1739808389814,3.61377,2767.2,2766.7,1.5074]
[1739808390016,0.04517527,2767.1,2766.2,0.355]
[1739808390220,3.61465,2766.6,2766.2,0.355]
[1739808390437,1.5847,2767.0,2765.9,1.5271]
[1739808390630,3.61503,2766.3,2765.9,1.5271]
[1739808390830,3.61508,2766.2,2765.9,1.5271]
[1739808391011,3.61507,2766.2,2765.6,0.355]
[1739808391331,3.61475,2766.5,2765.6,0.19033]
[1739808391538,0.7177958,2767.2,2765.6,0.19033]
[1739808391695,3.61481,2766.4,2765.6,0.19033]
[1739808391877,3.61481,2766.4,2765.4,4.5483]
[1739808391878,1.5847,2767.0,2765.4,1.5483]
[1739808392216,1.5847,2767.0,2765.4,4.5483]
[1739808392429,1.5847,2767.0,2765.5,0.05369416]
[1739808392581,1.5847,2767.0,2765.6,0.55]
[1739808392781,3.61498,2766.3,2765.7,0.05365207]
[1739808393005,3.61508,2766.2,2765.4,4.5483]
[1739808393219,3.61471,2766.5,2765.5,0.60382849]
[1739808393561,3.6148,2766.4,2765.6,3.0]
[1739808393825,5.15046,2767.5,2765.9,3.61544]
[1739808394119,5.15046,2767.5,2765.8,1.5894]
[1739808394120,3.61444,2766.7,2766.1,0.55]
[1739808394325,0.04518311,2767.8,2766.2,1.5894]
[1739808394520,3.61362,2767.4,2766.3,3.97083]
[1739808394682,3.61389,2767.1,2766.4,0.55]
[1739808394883,3.6141,2767.0,2766.5,0.05289361]
[1739808395080,3.61369,2767.3,2766.5,0.05289361]
[1739808395284,0.72444148,2767.8,2766.5,0.05289361]
[1739808395526,7.22799,2767.1,2766.5,0.05289361]
[1739808395722,0.52615415,2767.7,2766.5,0.05289361]
[1739808395935,3.61354,2767.4,2766.5,0.05289361]
[1739808396091,3.61345,2767.5,2766.5,3.66756361]
[1739808396431,7.22607,2767.8,2766.8,0.55]
[1739808396611,1.5371,2767.9,2766.9,0.05236786]
[1739808396982,3.61383,2767.2,2766.7,1.6088]
[1739808397182,3.61383,2767.2,2766.8,0.05245599]
[1739808397183,3.61415,2766.9,2766.8,0.05245599]
[1739808397390,3.61481,2766.4,2766.1,1.6088]
[1739808397689,3.61456,2766.6,2766.2,0.0510365]
[1739808398133,3.61461,2766.6,2766.2,0.0510365]
[1739808398508,3.61436,2766.8,2766.2,0.0510365]
[1739808398716,7.22873,2766.8,2766.2,0.6010365]
[1739808398890,3.61469,2766.5,2766.2,0.0510365]
[1739808399095,0.722873,2766.8,2766.2,0.0510365]
[1739808399096,3.61493,2766.3,2766.2,0.0510365]
[1739808399290,3.61458,2766.6,2766.2,0.0510365]
[1739808399496,0.722873,2766.8,2765.6,1.972]
[1739808399742,3.61474,2766.5,2765.6,1.972]
[1739808400031,3.61529,2766.1,2765.7,0.05147745]
[1739808400192,3.61415,2766.9,2765.7,0.05147745]
[1739808400395,4.65,2767.1,2765.7,0.05147745]
[1739808400600,3.61548,2765.9,2765.7,0.05147745]
[1739808400812,5.18003,2766.1,2765.1,1.617]
[1739808401106,5.18007,2766.1,2765.2,0.05191855]
[1739808401492,3.61588,2765.6,2765.2,0.05191855]
[1739808401732,1.5648,2766.1,2765.2,0.05191855]
[1739808401891,6.059526,2766.1,2765.2,0.05191855]
[1739808402231,2.444306,2766.1,2765.2,0.05191855]
[1739808402393,1.6249,2766.5,2765.2,0.05191855]
[1739808402591,0.73569175,2766.6,2765.3,0.55]
[1739808402791,3.61446,2766.7,2765.7,0.55]
[1739808403051,1.6249,2766.9,2765.8,0.04952246]
[1739808403220,3.61462,2766.6,2765.8,0.04952246]
[1739808403405,3.61449,2766.7,2765.8,0.04952246]
[1739808403614,3.61463,2766.6,2765.8,0.04952246]
[1739808403818,0.04518816,2766.5,2765.8,0.04952246]
[1739808404137,2.57601904,2766.9,2765.8,0.04952246]
[1739808404138,3.61494,2766.3,2765.8,0.04952246]
[1739808404293,3.61509,2766.2,2765.6,1.5723]
[1739808404497,3.61509,2766.2,2765.9,0.04943426]
[1739808404693,3.976609,2766.2,2765.6,1.5723]
[1739808404897,3.61543,2766.0,2765.2,2.0204]
[1739808405097,3.976619,2766.2,2765.7,0.04961066]
[1739808405297,3.61522,2766.1,2765.2,5.63674]
[1739808405533,3.6149,2766.4,2765.2,5.63674]
[1739808405534,3.6149,2766.4,2765.8,0.04986821]
[1739808405739,3.61432,2766.8,2765.7,3.6157]
[1739808406049,3.61545,2765.9,2765.8,0.04986821]
[1739808406196,3.61499,2766.3,2765.3,1.517]
[1739808406400,3.61522,2766.1,2765.4,0.05022105]
[1739808407221,3.6151,2766.2,2765.4,0.05022105]
[1739808407440,0.71476921,2766.4,2765.4,4.18467315]
[1739808407738,3.61466,2766.6,2765.5,0.55]
[1739808407900,3.61533,2766.0,2765.4,0.56857315]
[1739808408103,0.04519077,2766.5,2765.6,0.05004462]
[1739808408298,0.70781916,2766.7,2765.5,0.05013283]
[1739808408299,3.70781916,2766.7,2765.5,0.05013283]
[1739808408606,3.61469,2766.5,2765.6,0.05004462]
[1739808408811,3.61482,2766.4,2765.6,0.05004462]
[1739808409050,3.61469,2766.5,2765.5,4.16598]
[1739808409349,3.61507,2766.2,2765.6,0.05004462]
[1739808409652,3.0,2766.8,2765.3,1.517]
[1739808409807,3.61513,2766.2,2765.4,0.05022105]
[1739808410245,3.61529,2766.1,2765.4,0.05022105]
[1739808410450,3.0,2767.1,2765.4,0.05022105]
[1739808410631,0.72818626,2766.3,2765.4,0.56857016]
[1739808410942,4.34321626,2766.3,2765.4,0.56857016]
[1739808411115,4.34321626,2766.3,2765.4,3.66624105]
[1739808411326,3.61472,2766.5,2765.5,4.16591]
[1739808411520,3.61472,2766.5,2765.5,4.16592]
[1739808411779,3.61509,2766.2,2765.6,0.05004462]
[1739808412054,3.61481,2766.4,2765.4,3.61604]
[1739808412254,3.61461,2766.6,2765.7,0.55]
[1739808412453,3.61393,2767.1,2765.8,0.05024928]
[1739808412615,0.70878341,2766.6,2765.8,0.05024928]
[1739808412813,3.61485,2766.4,2765.8,0.05024928]
[1739808413012,4.32341341,2766.6,2765.6,1.5922]
[1739808413313,4.32340341,2766.6,2765.7,4.60434608]
[1739808413539,4.32340341,2766.6,2765.7,0.98864608]
[1739808413746,3.61474,2766.5,2765.7,0.98864608]
[1739808413945,3.61487,2766.4,2765.7,0.98864608]
[1739808414154,0.70878341,2766.6,2765.8,0.55]
[1739808414363,3.61445,2766.7,2765.8,0.55]
[1739808414514,1.6351,2767.3,2766.1,1.5193]
[1739808414858,3.61493,2766.3,2766.2,0.04989654]
[1739808415032,7.22971,2766.4,2766.1,1.5193]
[1739808415221,3.61463,2766.6,2766.2,0.04989654]
[1739808415420,3.61487,2766.4,2766.2,0.04989654]
[1739808415627,3.61493,2766.3,2766.2,0.04989654]
[1739808416546,3.61493,2766.3,2765.7,1.5232]
[1739808416859,3.61487,2766.4,2765.7,2.4480126]
[1739808417045,3.61489,2766.4,2765.8,0.05024928]
[1739808417448,3.61495,2766.3,2765.8,0.05024928]
[1739808417661,3.61518,2766.2,2765.8,0.05024928]
[1739808418161,3.61545,2765.9,2765.8,0.05024928]
[1739808418361,3.61415,2766.9,2765.8,0.05024928]
[1739808418669,3.61474,2766.5,2765.9,0.05016108]
[1739808418847,0.73242678,2766.6,2765.7,0.55]
[1739808419038,0.73242678,2766.6,2766.0,0.05007289]
[1739808419361,4.34698678,2766.6,2765.8,0.55]
[1739808419656,3.61456,2766.6,2765.8,0.55]
[1739808419820,0.73430888,2767.1,2766.1,1.5746]
[1739808420025,0.73430888,2767.1,2766.2,0.55]
[1739808420260,0.73430888,2767.1,2766.2,0.59989654]
[1739808420478,0.73430888,2767.1,2766.2,0.04989654]
[1739808420759,3.61469,2766.5,2766.2,0.04989654]
[1739808421160,3.61489,2766.4,2766.1,1.5746]
[1739808421376,3.61489,2766.4,2766.3,0.04980837]
[1739808421546,3.61493,2766.3,2766.2,0.04989654]
[1739808421862,3.61506,2766.2,2766.1,1.5746]
[1739808422028,3.615,2766.3,2766.1,1.5746]
[1739808422221,3.615,2766.3,2765.5,1.5746]
[1739808422425,3.61513,2766.2,2765.5,1.5746]
[1739808422841,3.61513,2766.2,2765.6,0.55]
[1739808423041,1.6398,2767.6,2766.1,1.5746]
[1739808423263,1.6398,2767.6,2766.3,0.55]
[1739808423264,3.6141,2767.0,2766.3,0.55]
[1739808423462,3.6141,2767.0,2766.1,4.5746]
[1739808423672,3.61422,2766.9,2766.1,4.5746]
[1739808423971,3.61301,2767.8,2766.1,4.5746]
[1739808423972,1.6173,2768.2,2766.3,1.6026]
[1739808424125,3.61336,2767.6,2766.7,0.55]
[1739808424559,3.6132,2767.7,2766.9,0.55]
[1739808424722,0.005,2768.4,2767.5,3.61333]
[1739808424926,3.6172,2768.4,2767.6,0.525533]
[1739808425162,0.005,2768.4,2767.9,2.192]
[1739808425565,0.005,2768.4,2768.0,0.04831046]
[1739808425863,0.005,2768.4,2768.2,8.80445]
[1739808426059,0.005,2768.4,2768.2,7.16245]
[1739808426258,0.005,2768.4,2768.2,8.85258436]
[1739808426561,0.005,2768.4,2768.2,10.60706239]
[1739808426740,0.7008012,2768.3,2768.2,10.60706239]
[1739808426925,0.7008012,2768.3,2768.2,1.69013436]
[1739808427128,4.3131212,2768.3,2768.2,0.04813436]
[1739808427350,4.35828224,2768.3,2768.2,0.04813436]
[1739808427548,4.35828224,2768.3,2766.5,0.69415606]
[1739808427549,3.0,2768.2,2766.6,1.642]
[1739808427791,3.61422,2766.9,2766.6,1.642]
[1739808427975,3.61422,2766.9,2766.7,0.04434726]
[1739808428177,3.61425,2766.9,2766.7,0.04434726]
[1739808428379,3.61454,2766.6,2766.5,0.69415606]
[1739808428752,3.61428,2766.8,2766.5,0.69415606]
[1739808428951,0.361425,2766.9,2766.5,0.69415606]
[1739808428952,3.61415,2766.9,2766.5,0.69415606]
[1739808429255,1.5832,2767.3,2766.5,0.69415606]
[1739808429590,3.61443,2766.7,2766.5,0.91390167]
[1739808429766,3.61467,2766.5,2765.5,1.5033]
[1739808429970,4.5832,2767.3,2765.5,1.5033]
[1739808429971,3.61443,2766.7,2765.6,0.55]
[1739808430155,3.61461,2766.6,2765.8,0.55]
[1739808430355,3.65961467,2766.7,2765.6,0.355]
[1739808430561,3.61443,2766.7,2765.7,0.48583]
[1739808430760,3.6148,2766.4,2765.7,0.48583]
[1739808430988,3.61489,2766.4,2765.7,0.48583]
[1739808431295,3.61455,2766.6,2765.8,0.55]
[1739808431663,1.5832,2767.3,2765.8,0.55]
[1739808431664,3.61467,2766.5,2765.8,0.55]
[1739808431867,3.61467,2766.5,2765.5,4.8583]
[1739808431868,3.61508,2766.2,2765.5,1.5033]
[1739808432083,3.61496,2766.3,2765.5,1.5033]
[1739808432269,3.61447,2766.7,2765.7,3.0]
[1739808432468,3.61423,2766.9,2765.8,0.55]
[1739808432777,1.5832,2767.3,2765.6,4.06614]
[1739808432778,3.6143,2766.8,2766.0,0.55]
[1739808432982,3.6151,2766.2,2765.9,1.6426]
[1739808433363,3.61503,2766.3,2765.9,1.6426]
[1739808433764,3.61507,2766.2,2766.0,0.0449644]
[1739808433963,3.61481,2766.4,2766.0,0.0449644]
[1739808434218,3.61519,2766.1,2766.0,0.0449644]
[1739808434785,3.61483,2766.4,2765.5,3.55]
[1739808435083,3.61483,2766.4,2765.7,0.55]
[1739808435415,3.61483,2766.4,2765.8,0.04598551]
[1739808435624,3.61507,2766.2,2765.8,0.04598551]
[1739808435902,3.61531,2766.1,2765.4,1.6441]
[1739808436111,3.61507,2766.2,2765.4,1.6441]
[1739808436112,3.61535,2766.0,2765.5,0.04625013]
[1739808436415,3.61519,2766.1,2765.5,0.04625013]
[1739808436573,3.61533,2766.0,2765.5,0.04625013]
[1739808436780,3.61581,2765.7,2765.5,0.04625013]
[1739808437116,0.71960827,2766.7,2764.3,3.61747]
[1739808437117,3.61635,2765.3,2764.3,3.61747]
[1739808437276,3.61579,2765.7,2764.7,3.61695]
[1739808437594,0.73849961,2766.0,2764.9,5.11786]
[1739808437759,0.04520073,2765.9,2764.9,1.5012]
[1739808437964,0.73849961,2766.0,2765.0,3.04687804]
[1739808438200,5.27507,2766.1,2765.2,3.61637]
[1739808438364,3.61533,2766.0,2765.1,4.4328948]
[1739808438565,3.61574,2765.7,2765.3,0.04661332]
[1739808438864,1.6598,2766.1,2765.4,0.04652509]
[1739808439101,3.61541,2766.0,2765.1,0.55]
[1739808439264,3.61541,2766.0,2765.2,0.46442178]
[1739808439479,3.61561,2765.8,2765.2,0.04777178]
[1739808439707,1.6598,2767.1,2765.6,4.5012]
[1739808439913,3.61419,2766.9,2765.7,0.40233068]
[1739808440217,1.6598,2768.0,2766.3,4.16484]
[1739808440382,3.61363,2767.3,2766.5,0.55]
[1739808440782,3.6135,2767.4,2766.6,0.0465371]
[1739808441001,3.61365,2767.3,2766.6,0.0465371]
[1739808441205,3.61386,2767.2,2766.6,0.0465371]
[1739808441416,3.61376,2767.2,2766.6,0.0465371]
[1739808441718,3.61376,2767.2,2766.4,0.566604]
[1739808441719,3.61365,2767.3,2766.7,0.04644895]
[1739808442037,3.61348,2767.5,2766.6,1.6165]
[1739808442333,3.61348,2767.5,2766.8,0.55]
[1739808442501,3.6136,2767.4,2766.8,0.55]
[1739808442823,3.61402,2767.0,2766.9,0.04627269]
[1739808443183,3.61379,2767.2,2766.6,1.6165]
[1739808443616,3.61403,2767.0,2766.7,0.04644895]
[1739808444020,3.61428,2766.8,2766.7,0.04644895]
[1739808444322,3.61475,2766.5,2766.2,1.5638]
[1739808444491,0.04518046,2766.9,2764.9,3.61675]
[1739808444492,3.61543,2766.0,2765.8,1.5638]
[1739808444695,3.61543,2766.0,2765.0,1.9188]
[1739808444894,3.61543,2766.0,2765.1,0.553546]
[1739808445309,1.5978,2766.4,2765.1,0.553546]
[1739808445310,3.61558,2765.9,2765.1,0.553546]
[1739808445515,3.61558,2765.9,2765.0,1.9188]
[1739808445697,1.5978,2766.4,2765.0,1.5638]
[1739808445896,3.61573,2765.7,2765.0,1.5638]
[1739808446101,3.6155,2765.9,2765.0,1.5638]
[1739808446297,1.5978,2766.4,2765.0,1.5638]
[1739808446495,1.5978,2766.8,2765.6,0.55]
[1739808446718,1.5978,2766.8,2765.5,1.5638]
[1739808446719,3.61546,2765.9,2765.5,1.5638]
[1739808447019,3.61546,2765.9,2765.1,0.6643526]
[1739808447020,3.61546,2765.9,2765.1,2.1732526]
[1739808447218,3.61454,2766.6,2765.1,2.1732526]
[1739808447219,3.6152,2766.1,2765.1,5.7896626]
[1739808447421,1.5978,2766.8,2765.1,2.1732526]
[1739808447635,3.61559,2765.8,2765.1,1.5089]
[1739808447787,3.61578,2765.7,2765.1,1.5089]
[1739808447988,3.61602,2765.5,2765.1,1.5089]
[1739808448191,3.61653,2765.1,2764.6,1.5089]
[1739808448517,3.61655,2765.1,2764.6,1.5089]
[1739808448721,3.61655,2765.1,2764.3,0.361765]
[1739808448722,0.0452096,2765.0,2764.3,0.361765]
[1739808448940,3.0,2765.7,2764.2,1.6316]
[1739808448941,3.61752,2764.4,2764.2,1.6316]
[1739808449084,3.61752,2764.4,2763.6,0.355]
[1739808449085,3.61721,2764.6,2763.7,1.6316]
[1739808449288,3.61757,2764.3,2763.7,1.6316]
[1739808449490,3.61792,2764.1,2763.7,1.6316]
[1739808449725,0.04522746,2764.6,2763.2,0.355]
[1739808449971,3.61715,2764.6,2763.2,0.26807561]
[1739808450241,3.6182,2763.9,2763.2,0.26807561]
[1739808450607,7.23598,2764.0,2763.2,0.26807561]
[1739808450807,3.61794,2764.0,2763.2,0.26807561]
[1739808451210,3.61757,2764.3,2763.3,3.6188]
[1739808451428,3.61757,2764.3,2763.2,3.88696561]
[1739808451429,3.61745,2764.4,2763.5,3.55]
[1739808451831,3.61757,2764.3,2763.5,3.55]
[1739808452017,1.6194,2764.7,2763.4,4.36926656]
[1739808452018,3.61795,2764.0,2763.6,1.628]
[1739808452218,3.61809,2763.9,2763.6,1.628]
[1739808452955,3.61809,2763.9,2763.2,1.87527561]
[1739808452956,3.61843,2763.7,2763.2,1.87527561]
[1739808453155,3.61843,2763.7,2761.6,0.69415606]
[1739808453156,0.04523597,2763.6,2762.3,1.6072]
[1739808453311,3.61845,2763.7,2762.3,1.6072]
[1739808453675,3.61845,2763.7,2762.6,3.61968]
[1739808453851,3.61847,2763.6,2762.7,3.723948]
[1739808454006,1.5589,2764.2,2762.8,1.5072]
[1739808454007,3.61801,2764.0,2762.8,1.5072]
[1739808454208,3.61821,2763.8,2763.0,0.55]
[1739808454439,3.61798,2764.0,2763.1,0.55]
[1739808454609,3.61807,2763.9,2763.1,0.55]
[1739808454811,3.61814,2763.9,2763.1,0.55]
[1739808455116,3.61768,2764.2,2763.4,4.5072]
[1739808455318,3.61759,2764.3,2763.5,0.04585919]
[1739808455519,3.61781,2764.1,2763.5,0.04585919]
[1739808455945,7.23573,2764.1,2763.6,0.55]
[1739808456140,4.6512,2765.1,2763.6,3.55]
[1739808456350,3.61709,2764.7,2763.8,0.55]
[1739808456512,3.66197833,2764.9,2763.8,0.55]
[1739808456716,1.27752,2765.0,2763.8,0.55]
[1739808456717,3.61735,2764.5,2763.9,0.04544607]
[1739808456938,3.61689,2764.8,2763.9,0.04544607]
[1739808457247,1.6512,2765.1,2763.7,0.55]
[1739808457467,3.6177,2764.2,2764.0,0.04535775]
[1739808457756,3.618,2764.0,2763.4,1.5072]
[1739808457961,3.61775,2764.2,2763.4,1.5072]
[1739808458158,1.6512,2765.1,2763.6,1.5741]
[1739808458321,3.61728,2764.6,2763.8,3.0]
[1739808458830,3.6167,2765.0,2764.1,0.55]
[1739808459030,3.61618,2765.4,2764.3,0.55]
[1739808459243,3.61585,2765.6,2764.7,0.55]
[1739808459444,3.61446,2766.7,2764.7,0.55]
[1739808459445,1.6515,2767.0,2765.3,1.518]
[1739808459650,1.6515,2767.0,2765.4,0.2068]
[1739808459651,3.61428,2766.8,2765.4,0.2068]
[1739808459849,3.61536,2766.0,2765.4,0.25056337]
[1739808460158,3.61509,2766.2,2765.4,3.25056337]
[1739808460159,3.51515,2766.2,2765.4,3.25056337]
[1739808460319,3.61434,2766.8,2765.9,0.55]
[1739808460658,3.61458,2766.6,2766.1,0.55]
[1739808460956,3.61458,2766.6,2766.0,1.61630037]
[1739808461133,3.61458,2766.6,2766.2,0.04272401]
[1739808461134,3.61468,2766.5,2766.2,0.04272401]
[1739808461316,3.61479,2766.5,2766.0,1.5734]
[1739808461521,3.61468,2766.5,2766.3,0.04263585]
[1739808461721,2.26105326,2767.4,2766.0,1.5734]
[1739808461722,3.61503,2766.3,2766.0,1.5734]
[1739808462019,3.61444,2766.7,2766.0,1.5734]
[1739808462344,3.61458,2766.6,2766.1,0.04281219]
[1739808462552,3.61478,2766.5,2766.1,0.04281219]
[1739808463046,3.61498,2766.3,2766.1,0.04281219]
[1739808463365,3.66024898,2766.2,2766.1,0.04281219]
[1739808463559,3.61498,2766.3,2766.1,0.04281219]
[1739808463734,3.61498,2766.3,2765.7,0.55]
[1739808463934,3.61498,2766.3,2766.2,0.04272401]
[1739808464269,3.61514,2766.2,2765.8,0.21282]
[1739808465031,0.04519043,2766.1,2765.6,1.5782]
[1739808465269,3.61587,2765.6,2765.4,0.2068]
[1739808465776,0.04519808,2766.1,2765.2,1.9593]
[1739808465777,3.61598,2765.5,2765.2,1.6043]
[1739808465978,3.61538,2766.0,2764.1,3.61774]
[1739808465979,3.6166,2765.1,2764.4,1.8943]
[1739808466843,3.61692,2764.8,2764.4,1.5393]
[1739808467043,3.61685,2764.9,2764.4,1.5393]
[1739808467269,3.61693,2764.8,2764.4,1.5393]
[1739808467880,3.61723,2764.6,2764.4,1.5393]
[1739808468061,3.61707,2764.7,2764.0,1.6524]
[1739808468653,3.61742,2764.4,2764.0,1.6524]
[1739808468970,3.61663,2765.0,2764.0,1.6524]
[1739808469175,3.61777,2764.2,2764.0,1.6524]
[1739808469342,3.61708,2764.7,2763.7,0.21698994]
[1739808469544,3.61756,2764.3,2763.7,0.21698994]
[1739808469743,3.61708,2764.7,2763.6,1.5214]
[1739808469744,3.61815,2763.9,2763.6,1.5214]
[1739808469944,3.61815,2763.9,2763.8,0.04401624]
[1739808470144,3.61815,2763.9,2763.6,1.5214]
[1739808470343,3.61796,2764.0,2763.8,0.04401624]
[1739808470547,3.61789,2764.1,2763.6,1.5214]
[1739808470743,3.61794,2764.0,2763.9,0.04392792]
[1739808470945,3.6183,2763.8,2763.1,1.6433]
[1739808471168,1.6374,2764.5,2763.1,1.6433]
[1739808471169,3.61859,2763.6,2763.1,1.6433]
[1739808471545,3.61857,2763.6,2763.1,1.6433]
[1739808471783,3.61868,2763.5,2763.1,1.6433]
[1739808472079,3.61857,2763.6,2763.1,1.6433]
[1739808472264,3.61876,2763.4,2763.1,1.6433]
[1739808472467,7.23758,2763.4,2763.1,1.6433]
[1739808472982,3.61876,2763.4,2763.1,1.6433]
[1739808473347,3.61848,2763.6,2763.1,1.6433]
[1739808473348,3.61853,2763.6,2763.1,1.6433]
[1739808473550,3.6187,2763.5,2763.1,1.6433]
[1739808473944,3.61874,2763.4,2763.1,1.6433]
[1739808474149,3.61886,2763.3,2763.1,1.6433]
[1739808474447,3.61864,2763.5,2763.1,1.6433]
[1739808474950,3.61864,2763.5,2762.7,1.5485]
[1739808474951,3.61933,2763.0,2762.7,1.5485]
[1739808475155,1.5606,2763.7,2762.7,1.5485]
[1739808475386,3.61981,2762.6,2762.1,1.5485]
[1739808475591,3.62003,2762.5,2762.1,1.5485]
[1739808475772,3.61981,2762.6,2762.1,1.5485]
[1739808475954,3.61999,2762.5,2762.1,1.5485]
[1739808476391,3.62007,2762.4,2762.1,1.5485]
[1739808477588,3.6203,2762.2,2761.5,1.6309]
[1739808477777,3.62054,2762.1,2761.5,1.6309]
[1739808478087,3.6207,2761.9,2761.5,1.6309]
[1739808478264,7.24147,2761.9,2761.5,1.6309]
[1739808478460,7.24147,2761.9,2760.8,1.9859]
[1739808478461,0.04526125,2761.8,2760.8,1.9859]
[1739808478666,3.6212,2761.6,2760.9,1.5372362]
[1739808478862,3.6213,2761.5,2760.9,4.5372362]
[1739808479273,3.62136,2761.4,2760.9,1.5372362]
[1739808479595,3.62122,2761.5,2760.8,1.6309]
[1739808479907,3.62148,2761.3,2760.8,1.6309]
[1739808480277,5.96514354,2762.1,2760.8,1.6309]
[1739808480474,3.62169,2761.2,2760.8,1.6309]
[1739808480705,3.62184,2761.1,2760.8,1.6309]
[1739808481793,7.24312,2761.3,2760.8,1.6309]
[1739808481999,3.62056,2762.0,2760.8,1.6309]
[1739808482316,3.62149,2761.3,2760.8,1.6309]
[1739808482520,3.62191,2761.0,2760.8,1.6309]
[1739808482724,3.62201,2760.9,2760.4,2.1479]
[1739808482863,3.62227,2760.7,2760.4,1.5979]